fUST/lending_fUST_20250826
["ID","MTS","AMOUNT","RATE_DAILY","PERIOD"]
[381465864,1756223459302,-1149.79,0.00041369,120]
[381465866,1756223459311,-990.78,0.00041369,120]
[381465868,1756223459320,-480.0,0.00041369,120]
[381465870,1756223459331,-1056.74,0.00041369,120]
[381465872,1756223459349,-480.0,0.00041369,120]
[381465874,1756223459359,-919.3,0.00041369,120]
[381465876,1756223459368,-450.71771703,0.00041369,120]
[381465878,1756223459377,-480.0,0.00041369,120]
[381465880,1756223459387,-480.0,0.00041369,2]
[381465882,1756223459396,-3866.73,0.00041369,120]
[381465884,1756223459406,-480.0,0.00041369,120]
[381465886,1756223459417,-2315.61,0.00041369,120]
[381465888,1756223459426,-480.0,0.00041369,120]
[381465890,1756223459436,-403.225739,0.00041369,120]
[381465892,1756223459446,-480.0,0.00041369,120]
[381465894,1756223459455,-403.225739,0.00041369,120]
[381465896,1756223459464,-480.0,0.00041369,120]
[381465898,1756223459474,-480.0,0.00041369,120]
[381465900,1756223459483,-480.0,0.00041369,120]
[381465902,1756223459494,-403.225739,0.00041369,120]
[381465904,1756223459503,-480.0,0.00041369,120]
[381465906,1756223459513,-3882.25,0.00041369,120]
[381465908,1756223459523,-480.0,0.00041369,120]
[381465910,1756223459533,-403.225739,0.00041369,120]
[381465912,1756223459543,-549.14,0.00041369,120]
[381465914,1756223459552,-500.0,0.000414,30]
[381465916,1756223459562,-500.0,0.00041436,30]
[381465918,1756223459572,-2264.10087164,0.00041642,30]
[381465920,1756223459581,-480.0,0.00041643,120]
[381465922,1756223459590,-480.0,0.00041643,120]
[381465923,1756223459600,-480.0,0.00041643,120]
[381465925,1756223459609,-480.0,0.00041643,120]
[381465927,1756223459618,-480.0,0.00041643,120]
[381465929,1756223459628,-572.96,0.00041643,120]
[381465931,1756223459637,-480.0,0.00041643,120]
[381465933,1756223459646,-480.0,0.00041643,120]
[381465935,1756223459655,-480.0,0.00041643,120]
[381465937,1756223459664,-480.0,0.00041643,120]
[381465939,1756223459674,-480.0,0.00041643,120]
[381465941,1756223459683,-480.0,0.00041643,120]
[381465943,1756223459693,-480.0,0.00041643,120]
[381465945,1756223459702,-552.2,0.00041643,7]
[381465947,1756223459712,-480.0,0.00041643,120]
[381465949,1756223459722,-480.0,0.00041643,120]
[381465951,1756223459734,-566.7625674,0.00041643,120]
[381465953,1756223459754,-595.23,0.00041643,120]
[381465955,1756223459774,-480.0,0.00041643,120]
[381465957,1756223459789,-8.70571557,0.00041643,120]
[381465982,1756223460029,-97.03187323,0.00041643,120]
[381465984,1756223460040,-374.2624112,0.00041643,120]
[381465986,1756223460050,-480.0,0.00041643,120]
[381465988,1756223460060,-490.49,0.00041643,120]
[381465990,1756223460070,-480.0,0.00041643,120]
[381465992,1756223460079,-202.58324845,0.00041643,120]
[381465994,1756223460091,-277.41675155,0.00041643,120]
[381465996,1756223460100,-226.71685561,0.00041643,120]
[381466038,1756223460538,-18.1868093,0.000308,10]
[381466040,1756223460550,-648.97999522,0.000308,10]
[381466043,1756223460562,-243.75319548,0.000308,10]
[381466045,1756223460572,-151.0,0.00037666,30]
[381466047,1756223460581,-54.2278197,0.00041,30]
[381466050,1756223460604,-151.0,0.00037666,30]
[381466052,1756223460614,-96.7721803,0.00041,30]
[381466054,1756223460624,-721.71,0.00041095,120]
[381466056,1756223460634,-151.0,0.00041095,30]
[381466057,1756223460643,-721.71,0.00041369,120]
[381466059,1756223460653,-151.0,0.00041369,120]
[381466061,1756223460663,-253.28314439,0.00041643,120]
[381466063,1756223460673,-480.0,0.00041643,120]
[381466065,1756223460683,-223.385136,0.00041643,120]
[381466067,1756223460693,-480.0,0.00041643,120]
[381466069,1756223460703,-680.6,0.00041643,120]
[381466071,1756223460712,-480.0,0.00041643,120]
[381466073,1756223460722,-480.0,0.00041643,120]
[381466075,1756223460733,-550.88,0.00041643,120]
[381466077,1756223460749,-1663.56,0.00041643,120]
[381466079,1756223460763,-480.0,0.00041643,120]
[381466081,1756223460777,-480.0,0.00041643,120]
[381466083,1756223460788,-706.32,0.00041643,120]
[381466085,1756223460799,-480.0,0.00041643,120]
[381466087,1756223460809,-480.0,0.00041643,120]
[381466089,1756223460819,-480.0,0.00041643,120]
[381466091,1756223460829,-558.93,0.00041643,120]
[381466093,1756223460838,-480.0,0.00041643,120]
[381466095,1756223460849,-480.0,0.00041643,120]
[381466097,1756223460858,-480.0,0.00041643,120]
[381466099,1756223460867,-480.0,0.00041643,120]
[381466101,1756223460879,-480.0,0.00041643,120]
[381466103,1756223460889,-480.0,0.00041643,120]
[381466105,1756223460901,-779.59,0.00041643,120]
[381466107,1756223460910,-837.28,0.00041643,120]
[381466109,1756223460920,-480.0,0.00041643,120]
[381466111,1756223460930,-929.13,0.00041643,120]
[381466112,1756223460939,-981.62,0.00041643,120]
[381466114,1756223460949,-480.0,0.00041643,120]
[381466116,1756223460958,-480.0,0.00041643,120]
[381466118,1756223460968,-480.0,0.00041643,120]
[381466120,1756223460977,-401.75678962,0.00041643,120]
[381466122,1756223460986,-801.2,0.00041643,120]
[381466124,1756223460995,-480.0,0.00041643,120]
[381466126,1756223461005,-932.3,0.00041643,120]
[381466128,1756223461015,-530.05,0.00041643,120]
[381466130,1756223461026,-2164.0,0.00041643,120]
[381466132,1756223461035,-480.0,0.00041643,120]
[381466134,1756223461045,-736.23,0.00041643,120]
[381466136,1756223461054,-480.0,0.00041643,120]
[381466138,1756223461064,-509.27,0.00041643,120]
[381466140,1756223461073,-14329.44,0.00041643,120]
[381466142,1756223461082,-480.0,0.00041643,120]
[381466144,1756223461092,-493.85,0.00041643,120]
[381466146,1756223461101,-491.73,0.00041643,120]
[381466148,1756223461111,-379.47347161,0.00041643,120]
[381466150,1756223461120,-480.0,0.00041643,120]
[381466152,1756223461130,-151.0,0.00041643,120]
[381466154,1756223461139,-480.0,0.00041643,120]
[381466156,1756223461149,-480.0,0.00041643,120]
[381466157,1756223461158,-480.0,0.00041643,120]
[381466159,1756223461167,-480.0,0.00041643,120]
[381466161,1756223461177,-480.0,0.00041643,120]
[381466163,1756223461186,-1286.08,0.00041643,120]
[381466165,1756223461196,-480.0,0.00041643,120]
[381466167,1756223461205,-1402.18,0.00041643,120]
[381466169,1756223461215,-151.0,0.00041643,120]
[381466171,1756223461225,-480.0,0.00041643,120]
[381466173,1756223461235,-524.91,0.00041643,120]
[381466175,1756223461245,-480.0,0.00041643,120]
[381466177,1756223461255,-480.0,0.00041643,120]
[381466179,1756223461264,-3055.89,0.00041643,120]
[381466181,1756223461274,-480.0,0.00041643,120]
[381466183,1756223461285,-480.0,0.00041643,120]
[381466185,1756223461295,-1105.58,0.00041643,120]
[381466187,1756223461304,-792.44,0.00041643,120]
[381466189,1756223461313,-480.0,0.00041643,120]
[381466191,1756223461323,-666.93,0.00041643,120]
[381466193,1756223461332,-1027.38,0.00041643,120]
[381466195,1756223461344,-480.0,0.00041643,120]
[381466197,1756223461353,-674.71,0.00041643,120]
[381466199,1756223461364,-151.0,0.00041643,120]
[381466201,1756223461374,-480.0,0.00041643,120]
[381466203,1756223461384,-151.0,0.00041643,120]
[381466205,1756223461393,-598.66,0.00041643,120]
[381466207,1756223461403,-533.2,0.00041643,120]
[381466209,1756223461412,-480.0,0.00041643,120]
[381466211,1756223461421,-611.56,0.00041643,120]
[381466213,1756223461431,-692.85,0.00041643,120]
[381466214,1756223461440,-480.0,0.00041643,120]
[381466216,1756223461449,-648.22,0.00041643,120]
[381466218,1756223461459,-480.0,0.00041643,120]
[381466220,1756223461468,-480.0,0.00041643,7]
[381466222,1756223461477,-151.0,0.00041643,15]
[381466224,1756223461487,-609.67,0.00041643,120]
[381466226,1756223461497,-480.0,0.00041643,120]
[381466228,1756223461506,-480.0,0.00041643,120]
[381466230,1756223461515,-480.0,0.00041643,120]
[381466232,1756223461527,-564.17,0.00041643,120]
[381466234,1756223461536,-934.48,0.00041643,120]
[381466236,1756223461545,-11243.58,0.00041643,120]
[381466238,1756223461555,-897.02,0.00041643,120]
[381466240,1756223461564,-480.0,0.00041643,120]
[381466242,1756223461573,-549.24,0.00041643,20]
[381466244,1756223461583,-715.79,0.00041643,120]
[381466246,1756223461593,-1180.15,0.00041643,120]
[381466248,1756223461602,-480.0,0.00041643,120]
[381466249,1756223461611,-1393.75,0.00041643,120]
[381466251,1756223461621,-480.0,0.00041643,120]
[381466252,1756223461631,-559.02,0.00041643,120]
[381466253,1756223461641,-480.0,0.00041643,120]
[381466254,1756223461651,-480.0,0.00041643,120]
[381466255,1756223461660,-914.29,0.00041643,120]
[381466256,1756223461672,-480.0,0.00041643,120]
[381466257,1756223461681,-2133.76,0.00041643,120]
[381466258,1756223461690,-480.0,0.00041643,120]
[381466259,1756223461700,-480.0,0.00041643,120]
[381466260,1756223461709,-480.0,0.00041643,120]
[381466261,1756223461719,-925.77,0.00041643,120]
[381466262,1756223461728,-480.0,0.00041643,120]
[381466263,1756223461739,-1192.62,0.00041643,120]
[381466264,1756223461752,-480.0,0.00041643,120]
[381466265,1756223461761,-480.0,0.00041643,120]
[381466266,1756223461772,-480.0,0.00041643,120]
[381466267,1756223461783,-480.0,0.00041643,120]
[381466268,1756223461793,-494.16,0.00041643,120]
[381466269,1756223461802,-480.0,0.00041643,120]
[381466270,1756223461812,-574.1,0.00041643,120]
[381466271,1756223461822,-480.0,0.00041643,120]
[381466272,1756223461832,-480.0,0.00041643,120]
[381466273,1756223461842,-151.0,0.00041643,120]
[381466274,1756223461851,-480.0,0.00041643,120]
[381466275,1756223461861,-480.0,0.00041643,120]
[381466276,1756223461870,-200.0,0.00041643,120]
[381466277,1756223461879,-697.27,0.00041643,120]
[381466278,1756223461888,-1678.98,0.00041643,120]
[381466279,1756223461898,-480.0,0.00041643,120]
[381466281,1756223461911,-480.0,0.00041643,120]
[381466283,1756223461930,-2221.08,0.00041643,30]
[381466285,1756223461939,-649.55,0.00041643,120]
[381466287,1756223461949,-930.63,0.00041643,120]
[381466289,1756223461959,-667.91,0.00041643,120]
[381466291,1756223461969,-480.0,0.00041643,120]
[381466293,1756223461979,-480.0,0.00041643,120]
[381466295,1756223461988,-1107.31,0.00041643,120]
[381466297,1756223461998,-869.59,0.00041643,120]
[381466299,1756223462007,-1013.15,0.00041643,120]
[381466301,1756223462019,-480.0,0.00041643,120]
[381466303,1756223462029,-480.0,0.00041643,120]
[381466305,1756223462039,-512.47,0.00041643,120]
[381466307,1756223462048,-480.0,0.00041643,120]
[381466309,1756223462058,-636.19,0.00041643,120]
[381466311,1756223462068,-1238.46,0.00041643,120]
[381466313,1756223462077,-235.32887535,0.00041643,120]
[381466315,1756223462087,-2262.59,0.00041643,120]
[381466317,1756223462096,-480.0,0.00041643,120]
[381466319,1756223462106,-649.23,0.00041643,120]
[381466320,1756223462116,-480.0,0.00041643,120]
[381466322,1756223462126,-480.0,0.00041643,120]
[381466324,1756223462135,-600.69,0.00041643,120]
[381466326,1756223462145,-586.85,0.00041643,120]
[381466328,1756223462154,-480.0,0.00041643,120]
[381466330,1756223462163,-480.0,0.00041643,120]
[381466332,1756223462172,-151.0,0.00041643,120]
[381466334,1756223462182,-480.0,0.00041643,120]
[381466336,1756223462191,-500.0,0.00041643,120]
[381466338,1756223462201,-492.08,0.00041643,120]
[381466340,1756223462210,-399.08619867,0.00041643,120]
[381466342,1756223462221,-3144.45,0.00041643,120]
[381466344,1756223462231,-480.0,0.00041643,120]
[381466346,1756223462241,-480.0,0.00041643,120]
[381466349,1756223462251,-480.0,0.00041643,120]
[381466350,1756223462260,-480.0,0.00041643,120]
[381466352,1756223462272,-480.0,0.00041643,120]
[381466354,1756223462282,-532.94,0.00041643,120]
[381466356,1756223462292,-486.55,0.00041643,120]
[381466375,1756223462468,-480.0,0.00041643,120]
[381466377,1756223462481,-1336.4,0.00041643,120]
[381466379,1756223462491,-480.0,0.00041643,120]
[381466381,1756223462503,-480.0,0.00041643,120]
[381466383,1756223462517,-151.0,0.00041643,120]
[381466385,1756223462530,-480.0,0.00041643,120]
[381466387,1756223462540,-480.0,0.00041643,120]
[381466389,1756223462550,-480.0,0.00041643,120]
[381466391,1756223462560,-860.29,0.00041643,120]
[381466393,1756223462570,-480.0,0.00041643,120]
[381466395,1756223462580,-1450.82,0.00041643,120]
[381466397,1756223462590,-480.0,0.00041643,120]
[381466399,1756223462601,-480.0,0.00041643,120]
[381466401,1756223462619,-615.74,0.00041643,120]
[381466403,1756223462631,-480.0,0.00041643,120]
[381466405,1756223462641,-480.0,0.00041643,120]
[381466407,1756223462653,-534.46,0.00041643,120]
[381466409,1756223462662,-480.0,0.00041643,120]
[381466411,1756223462671,-480.0,0.00041643,120]
[381466413,1756223462681,-1742.21,0.00041643,120]
[381466415,1756223462691,-1280.55,0.00041643,120]
[381466417,1756223462700,-527.49,0.00041643,120]
[381466419,1756223462710,-480.0,0.00041643,120]
[381466421,1756223462720,-480.0,0.00041643,120]
[381466423,1756223462729,-1419.06,0.00041643,120]
[381466425,1756223462740,-1121.69,0.00041643,120]
[381466427,1756223462751,-640.47,0.00041643,120]
[381466429,1756223462760,-480.0,0.00041643,120]
[381466430,1756223462769,-480.0,0.00041643,120]
[381466431,1756223462779,-480.0,0.00041643,120]
[381466432,1756223462789,-589.08,0.00041643,120]
[381466433,1756223462799,-1362.51,0.00041643,120]
[381466434,1756223462809,-712.89,0.00041643,120]
[381466435,1756223462820,-480.0,0.00041643,120]
[381466436,1756223462830,-480.0,0.00041643,120]
[381466437,1756223462839,-480.0,0.00041643,120]
[381466438,1756223462848,-480.0,0.00041643,120]
[381466439,1756223462857,-686.29,0.00041643,120]
[381466440,1756223462867,-553.04,0.00041643,14]
[381466441,1756223462877,-480.0,0.00041643,120]
[381466442,1756223462886,-480.0,0.00041643,120]
[381466443,1756223462895,-480.0,0.00041643,120]
[381466444,1756223462905,-480.0,0.00041643,120]
[381466445,1756223462914,-889.08,0.00041643,120]
[381466446,1756223462924,-480.0,0.00041643,120]
[381466447,1756223462934,-480.0,0.00041643,120]
[381466448,1756223462943,-1743.7,0.00041643,120]
[381466449,1756223462953,-480.0,0.00041643,120]
[381466450,1756223462963,-480.0,0.00041643,120]
[381466452,1756223462972,-480.0,0.00041643,120]
[381466454,1756223462982,-5159.49,0.00041643,120]
[381466456,1756223462992,-2178.69,0.00041643,120]
[381466458,1756223463001,-480.0,0.00041643,120]
[381466460,1756223463011,-480.0,0.00041643,120]
[381466461,1756223463022,-221.510157,0.00041643,120]
[381466464,1756223463032,-480.0,0.00041643,120]
[381466465,1756223463042,-480.0,0.00041643,120]
[381466468,1756223463051,-480.0,0.00041643,120]
[381466470,1756223463061,-480.0,0.00041643,120]
[381466472,1756223463071,-708.13,0.00041643,120]
[381466474,1756223463081,-480.0,0.00041643,120]
[381466476,1756223463091,-480.0,0.00041643,120]
[381466477,1756223463100,-573.78,0.00041643,120]
[381466479,1756223463110,-480.0,0.00041643,120]
[381466482,1756223463120,-480.0,0.00041643,120]
[381466484,1756223463130,-480.0,0.00041643,120]
[381466485,1756223463139,-1702.95,0.00041643,30]
[381466488,1756223463149,-480.0,0.00041643,120]
[381466490,1756223463159,-151.0,0.00041643,120]
[381466492,1756223463169,-480.0,0.00041643,120]
[381466494,1756223463179,-480.0,0.00041643,120]
[381466496,1756223463189,-853.06,0.00041643,120]
[381466498,1756223463200,-151.0,0.00041643,30]
[381466500,1756223463211,-562.46,0.00041643,120]
[381466502,1756223463221,-480.0,0.00041643,120]
[381466504,1756223463231,-488.33,0.00041643,120]
[381466506,1756223463241,-480.0,0.00041643,120]
[381466508,1756223463251,-480.0,0.00041643,120]
[381466510,1756223463260,-480.0,0.00041643,120]
[381466512,1756223463270,-480.0,0.00041643,120]
[381466514,1756223463280,-1220.54,0.00041643,120]
[381466516,1756223463290,-480.0,0.00041643,120]
[381466518,1756223463300,-480.0,0.00041643,120]
[381466520,1756223463310,-657.55,0.00041643,120]
[381466522,1756223463320,-373.44835112,0.00041643,120]
[381466524,1756223463330,-151.0,0.00041643,120]
[381466526,1756223463340,-480.0,0.00041643,7]
[381466528,1756223463350,-480.0,0.00041643,120]
[381466530,1756223463361,-849.47,0.00041643,120]
[381466532,1756223463371,-151.0,0.00041643,120]
[381466534,1756223463381,-685.15,0.00041643,120]
[381466536,1756223463391,-480.0,0.00041643,120]
[381466538,1756223463401,-341.51677264,0.00041643,120]
[381466540,1756223463411,-595.86,0.00041643,120]
[381466542,1756223463421,-480.0,0.00041643,120]
[381466544,1756223463431,-480.04,0.00041643,120]
[381466546,1756223463441,-591.47,0.00041643,120]
[381466548,1756223463451,-652.94,0.00041643,120]
[381466550,1756223463462,-545.94,0.00041643,120]
[381466552,1756223463472,-482.53,0.00041643,120]
[381466554,1756223463481,-480.0,0.00041643,120]
[381466556,1756223463491,-480.0,0.00041643,120]
[381466558,1756223463501,-480.0,0.00041643,120]
[381466560,1756223463511,-807.18,0.00041643,120]
[381466562,1756223463523,-734.22,0.00041643,120]
[381466564,1756223463533,-480.0,0.00041643,120]
[381466566,1756223463543,-480.0,0.00041643,120]
[381466568,1756223463553,-480.0,0.00041643,120]
[381466570,1756223463563,-480.0,0.00041643,120]
[381466572,1756223463573,-1185.41,0.00041643,120]
[381466574,1756223463582,-480.0,0.00041643,120]
[381466576,1756223463592,-742.85,0.00041643,120]
[381466578,1756223463602,-480.0,0.00041643,120]
[381466580,1756223463612,-151.0,0.00041643,120]
[381466582,1756223463621,-6368.35,0.00041643,120]
[381466584,1756223463631,-388.80220121,0.00041643,120]
[381466586,1756223463641,-1649.85,0.00041643,120]
[381466588,1756223463651,-695.46,0.00041643,120]
[381466590,1756223463661,-480.0,0.00041643,120]
[381466592,1756223463670,-480.0,0.00041643,120]
[381466594,1756223463680,-480.0,0.00041643,120]
[381466596,1756223463690,-291.25064386,0.00041643,120]
[381466598,1756223463700,-480.0,0.00041643,120]
[381466600,1756223463710,-480.0,0.00041643,120]
[381466602,1756223463721,-640.25,0.00041643,120]
[381466604,1756223463730,-589.09,0.00041643,120]
[381466606,1756223463742,-7535.58,0.00041643,120]
[381466608,1756223463758,-480.0,0.00041643,120]
[381466610,1756223463769,-480.0,0.00041643,120]
[381466612,1756223463779,-480.0,0.00041643,120]
[381466614,1756223463790,-480.0,0.00041643,120]
[381466616,1756223463800,-151.0,0.00041643,120]
[381466618,1756223463811,-532.08395234,0.00041643,120]
[381466620,1756223463821,-3265.22,0.00041643,120]
[381466622,1756223463831,-8358.4,0.00041643,120]
[381466624,1756223463841,-1296.89,0.00041643,120]
[381466625,1756223463851,-993.27,0.00041643,120]
[381466627,1756223463861,-480.0,0.00041643,120]
[381466629,1756223463871,-1240.25,0.00041643,120]
[381466631,1756223463881,-480.0,0.00041643,120]
[381466633,1756223463891,-805.33,0.00041643,120]
[381466635,1756223463901,-480.0,0.00041643,120]
[381466637,1756223463910,-480.0,0.00041643,120]
[381466639,1756223463920,-480.0,0.00041643,120]
[381466641,1756223463930,-1212.11,0.00041643,120]
[381466643,1756223463940,-713.83,0.00041643,120]
[381466645,1756223463950,-480.0,0.00041643,120]
[381466647,1756223463960,-480.0,0.00041643,120]
[381466649,1756223463970,-525.92718038,0.00041643,120]
[381466651,1756223463980,-539.95,0.00041643,120]
[381466653,1756223463990,-489.4,0.00041643,120]
[381466655,1756223464000,-1206.68,0.00041643,120]
[381466657,1756223464011,-480.0,0.00041643,120]
[381466659,1756223464023,-151.0,0.00041643,90]
[381466661,1756223464033,-666.78,0.00041643,120]
[381466662,1756223464042,-480.0,0.00041643,120]
[381466663,1756223464052,-151.0,0.00041643,90]
[381466665,1756223464062,-480.0,0.00041643,120]
[381466667,1756223464072,-151.0,0.00041643,90]
[381466668,1756223464082,-480.0,0.00041643,120]
[381466669,1756223464092,-480.0,0.00041643,120]
[381466671,1756223464102,-480.0,0.00041643,120]
[381466672,1756223464112,-480.0,0.00041643,120]
[381466674,1756223464122,-480.0,0.00041643,120]
[381466676,1756223464133,-480.0,0.00041643,120]
[381466677,1756223464143,-613.0,0.00041643,120]
[381466679,1756223464153,-480.0,0.00041643,120]
[381466680,1756223464162,-480.0,0.00041643,120]
[381466682,1756223464171,-4903.48,0.00041643,120]
[381466683,1756223464181,-480.0,0.00041643,120]
[381466684,1756223464191,-480.0,0.00041643,120]
[381466686,1756223464200,-2716.17,0.00041643,120]
[381466687,1756223464209,-480.0,0.00041643,120]
[381466689,1756223464219,-480.0,0.00041643,120]
[381466690,1756223464229,-480.0,0.00041643,120]
[381466692,1756223464238,-480.0,0.00041643,120]
[381466693,1756223464248,-151.0,0.00041643,120]
[381466695,1756223464258,-566.76,0.00041643,120]
[381466696,1756223464268,-480.0,0.00041643,120]
[381466698,1756223464277,-839.1,0.00041643,120]
[381466700,1756223464287,-151.0,0.00041643,120]
[381466701,1756223464297,-1131.55,0.00041643,120]
[381466703,1756223464307,-1021.01,0.00041643,120]
[381466704,1756223464316,-175.966516,0.00041643,120]
[381466706,1756223464327,-480.0,0.00041643,120]
[381466708,1756223464337,-508.62,0.00041643,120]
[381466709,1756223464347,-151.0,0.00041643,120]
[381466711,1756223464357,-480.0,0.00041643,120]
[381466712,1756223464366,-1062.25,0.00041643,120]
[381466714,1756223464376,-480.0,0.00041643,120]
[381466715,1756223464385,-768.46,0.00041643,120]
[381466716,1756223464394,-480.0,0.00041643,120]
[381466718,1756223464403,-151.0,0.00041643,120]
[381466719,1756223464413,-480.0,0.00041643,120]
[381466721,1756223464424,-480.0,0.00041643,120]
[381466723,1756223464437,-257.68268528,0.00041643,120]
[381466724,1756223464447,-224.975184,0.00041643,120]
[381466726,1756223464459,-1078.55,0.00041643,120]
[381466727,1756223464468,-480.0,0.00041643,120]
[381466729,1756223464478,-207.432645,0.00041643,120]
[381466731,1756223464488,-480.0,0.00041643,120]
[381466732,1756223464498,-578.36,0.00041643,120]
[381466734,1756223464508,-480.0,0.00041643,120]
[381466735,1756223464518,-608.96,0.00041643,120]
[381466737,1756223464528,-817.61,0.00041643,120]
[381466738,1756223464537,-480.0,0.00041643,120]
[381466740,1756223464547,-480.0,0.00041643,120]
[381466742,1756223464557,-480.0,0.00041643,120]
[381466743,1756223464567,-1983.36,0.00041643,120]
[381466745,1756223464576,-579.89,0.00041643,120]
[381466746,1756223464586,-480.0,0.00041643,120]
[381466748,1756223464595,-480.0,0.00041643,120]
[381466749,1756223464605,-1514.47,0.00041643,120]
[381466751,1756223464614,-8264.81,0.00041643,120]
[381466753,1756223464623,-518.6,0.00041643,120]
[381466754,1756223464633,-480.0,0.00041643,120]
[381466756,1756223464642,-703.77,0.00041643,120]
[381466757,1756223464652,-1057.89,0.00041643,120]
[381466759,1756223464661,-665.83,0.00041643,120]
[381466761,1756223464671,-1517.23,0.00041643,120]
[381466762,1756223464680,-3109.14,0.00041643,21]
[381466764,1756223464690,-1363.12,0.00041643,120]
[381466765,1756223464699,-434.3838546,0.00041643,120]
[381466767,1756223464709,-480.0,0.00041643,120]
[381466769,1756223464719,-817.02,0.00041643,120]
[381466770,1756223464728,-480.0,0.00041643,120]
[381466772,1756223464742,-778.27,0.00041643,120]
[381466773,1756223464758,-980.15,0.00041643,120]
[381466774,1756223464768,-1142.52,0.00041643,120]
[381466775,1756223464778,-480.0,0.00041643,120]
[381466777,1756223464790,-1442.01,0.00041643,120]
[381466778,1756223464800,-480.0,0.00041643,120]
[381466780,1756223464810,-1638.98,0.00041643,120]
[381466781,1756223464821,-6081.75,0.00041643,120]
[381466783,1756223464832,-480.0,0.00041643,120]
[381466785,1756223464841,-4413.0,0.00041643,120]
[381466786,1756223464851,-1019.55,0.00041643,120]
[381466788,1756223464860,-575.24,0.00041643,120]
[381466789,1756223464870,-774.02,0.00041643,120]
[381466791,1756223464880,-615.81,0.00041643,120]
[381466792,1756223464889,-480.0,0.00041643,120]
[381466794,1756223464898,-623.82,0.00041643,120]
[381466795,1756223464908,-603.4,0.00041643,120]
[381466797,1756223464917,-480.0,0.00041643,120]
[381466799,1756223464926,-480.0,0.00041643,120]
[381466800,1756223464936,-1133.49,0.00041643,30]
[381466802,1756223464945,-480.0,0.00041643,120]
[381466803,1756223464954,-480.0,0.00041643,120]
[381466805,1756223464964,-151.0,0.00041643,120]
[381466806,1756223464973,-523.83,0.00041643,120]
[381466811,1756223465026,-151.0,0.00041643,120]
[381466812,1756223465036,-1984.9,0.00041643,120]
[381466814,1756223465046,-480.0,0.00041643,120]
[381466816,1756223465056,-2251.6,0.00041643,120]
[381466817,1756223465066,-906.82,0.00041643,120]
[381466819,1756223465076,-518.48,0.00041643,120]
[381466820,1756223465085,-480.0,0.00041643,120]
[381466822,1756223465094,-480.0,0.00041643,120]
[381466823,1756223465104,-996.78,0.00041643,120]
[381466825,1756223465113,-572.27,0.00041643,120]
[381466827,1756223465123,-480.0,0.00041643,120]
[381466828,1756223465132,-480.0,0.00041643,120]
[381466830,1756223465142,-480.0,0.00041643,120]
[381466831,1756223465152,-571.95,0.00041643,120]
[381466833,1756223465161,-480.0,0.00041643,120]
[381466835,1756223465171,-480.0,0.00041643,120]
[381466836,1756223465180,-480.0,0.00041643,120]
[381466838,1756223465190,-586.81,0.00041643,120]